bitfinex/quotes_BTCUSD_20260310
["timestamp","ask_amount","ask_price","bid_price","bid_amount"]
[1773150074185,0.07140307,70025.0,69998.0,0.07142983]
[1773150074186,0.03,70017.0,69998.0,0.07142983]
[1773150074360,0.03,70013.0,69999.0,0.00929665]
[1773150074565,0.03,70013.0,69998.0,0.07142983]
[1773150074763,0.03,70011.0,69998.0,0.07142983]
[1773150075575,0.03,70011.0,70000.0,0.19340181]
[1773150075787,0.03,70010.0,70001.0,0.0101447]
[1773150075994,0.07140307,70027.0,70001.0,0.0101447]
[1773150075995,0.00023,70025.0,70003.0,0.19340181]
[1773150076164,0.00023,70025.0,70005.0,0.19340181]
[1773150076344,0.00023,70025.0,70004.0,0.01178777]
[1773150076345,0.00023,70025.0,70007.0,0.19340181]
[1773150076552,0.00023,70025.0,70009.0,0.19340181]
[1773150076809,0.00023,70025.0,70002.0,0.07142653]
[1773150076810,0.0713912,70037.0,70002.0,0.07142653]
[1773150076812,1e-08,70043.0,70010.0,0.1752493]
[1773150076963,0.07136855,70059.0,70037.0,0.19340181]
[1773150077163,0.07570678,70058.0,70037.0,0.19340181]
[1773150077765,0.03,70055.0,70038.0,0.07138981]
[1773150078169,0.03011334,70055.0,70038.0,0.07138981]
[1773150078797,0.03011334,70055.0,70037.0,0.07138981]
[1773150078966,0.03,70051.0,70035.0,0.07139083]
[1773150079190,0.03,70049.0,70037.0,0.07139024]
[1773150079798,0.03,70049.0,70036.0,0.07139083]
[1773150079799,4.315e-05,70039.0,70036.0,0.07139083]
[1773150079987,4.315e-05,70039.0,70034.0,0.07139185]
[1773150080430,4.315e-05,70039.0,70030.0,0.00156]
[1773150080431,4.315e-05,70039.0,70027.0,0.07140066]
[1773150080614,4.315e-05,70039.0,70026.0,0.07140001]
[1773150080866,4.315e-05,70039.0,70027.0,0.19340181]
[1773150081403,0.00022001,70046.0,70025.0,0.07163205]
[1773150081404,0.03,70042.0,70025.0,0.07163205]
[1773150081606,0.03,70042.0,70024.0,0.07140205]
[1773150081607,0.00156,70043.0,70013.0,0.0714153]
[1773150081608,0.03,70036.0,70013.0,0.0714153]
[1773150081811,0.03,70034.0,70014.0,0.19340181]
[1773150082023,0.00156,70033.0,70016.0,0.07141224]
[1773150082226,0.00156,70033.0,70017.0,0.20212415]
[1773150082435,0.03,70032.0,70017.0,0.19340181]
[1773150082846,0.03,70032.0,70019.0,0.19340181]
[1773150083270,0.07139464,70034.0,70019.0,0.00037794]
[1773150083271,0.07570678,70034.0,70019.0,0.00037794]
[1773150083475,0.03,70033.0,70020.0,0.19340181]
[1773150083681,0.07570678,70034.0,70020.0,0.19340181]
[1773150083682,0.07570678,70034.0,70021.0,0.00834561]
[1773150083888,0.07570678,70034.0,70019.0,0.00037794]
[1773150084099,0.14710169,70033.0,70020.0,0.07140816]
[1773150084309,0.07295384,70035.0,70020.0,0.07140816]
[1773150084310,0.00156,70035.0,70020.0,0.07140816]
[1773150084515,0.00156,70036.0,70022.0,0.19340181]
[1773150084720,0.00156,70035.0,70022.0,0.19340181]
[1773150085137,0.00156,70035.0,70024.0,0.19340181]
[1773150085627,0.00156,70035.0,70020.0,0.07296816]
[1773150085834,0.00156,70035.0,70020.0,0.27623943]
[1773150086031,0.00156,70035.0,70022.0,0.07140612]
[1773150086244,0.10295364,70035.0,70023.0,0.19340181]
[1773150086566,0.03,70035.0,70022.0,0.25480793]
[1773150086790,0.00156,70039.0,70022.0,0.07272402]
[1773150086995,0.00156,70039.0,70023.0,0.19340181]
[1773150087378,0.03156,70039.0,70022.0,0.06140612]
[1773150087581,0.03,70035.0,70022.0,0.06140612]
[1773150088112,0.03,70035.0,70021.0,0.07140612]
[1773150088286,0.10139306,70035.0,70021.0,0.07140612]
[1773150088648,0.17709984,70035.0,70021.0,0.07140612]
[1773150088848,0.03,70033.0,70019.0,0.071787]
[1773150089078,0.03,70033.0,70012.0,0.00718]
[1773150089079,0.03,70029.0,70012.0,0.00562]
[1773150089285,0.03,70029.0,70004.0,0.07142408]
[1773150089286,0.03,70025.0,70004.0,0.19340181]
[1773150089488,0.03,70025.0,70004.0,0.19496181]
[1773150089820,0.03,70025.0,70001.0,0.07142755]
[1773150089821,0.07570678,70024.0,70023.0,0.00017688]
[1773150090010,0.00156,70028.0,70005.0,0.19496181]
[1773150090251,0.07140103,70027.0,70007.0,0.19340181]
[1773150090462,0.07570678,70026.0,70007.0,0.19340181]
[1773150090648,0.07296103,70028.0,70006.0,0.07142244]
[1773150090649,0.00082309,70025.0,70009.0,0.19340181]
[1773150090857,0.00082309,70025.0,70011.0,0.19340181]
[1773150091088,0.03156,70028.0,70013.0,0.19340181]
[1773150091089,0.03,70028.0,70013.0,0.19340181]
[1773150091290,0.03,70028.0,70015.0,0.19340181]
[1773150091503,0.03,70028.0,70016.0,0.01024162]
[1773150091680,0.03,70027.0,70017.0,0.19340181]
[1773150091858,0.03,70027.0,70017.0,0.20364211]
[1773150092059,0.00562,70040.0,70017.0,0.0102403]
[1773150092268,0.00562,70040.0,70019.0,0.19340181]
[1773150092436,0.00562,70040.0,70017.0,0.07178916]
[1773150092437,0.07726678,70047.0,70021.0,0.19340181]
[1773150092633,0.0716018,70046.0,70023.0,0.19340181]
[1773150092843,0.03,70045.0,70024.0,0.00156]
[1773150093074,0.03,70045.0,70025.0,0.19496181]
[1773150093360,0.03,70045.0,70027.0,0.19340181]
[1773150093568,0.03,70045.0,70029.0,0.19340181]
[1773150093775,0.03,70045.0,70025.0,0.20167649]
[1773150093988,0.03,70035.0,70021.0,0.001]
[1773150094211,0.03,70033.0,70020.0,0.00156]
[1773150094435,0.03,70033.0,70021.0,0.00907865]
[1773150094846,0.00156,70038.0,70023.0,0.20167649]
[1773150095054,0.07726678,70038.0,70023.0,0.00156]
[1773150095264,0.03,70037.0,70017.0,0.08225175]
[1773150095479,0.03,70037.0,70020.0,0.20167649]
[1773150095687,0.00022001,70046.0,70022.0,0.20167649]
[1773150095898,0.00022001,70046.0,70024.0,0.20167649]
[1773150096104,0.07137707,70051.0,70018.0,0.00156]
[1773150096105,0.00156,70056.0,70026.0,0.20167649]
[1773150096327,1e-08,70063.0,70040.0,0.1631623]
[1773150096524,0.1631623,70090.0,70040.0,0.1631623]
[1773150096525,0.00562,70096.0,70051.0,0.91908349]
[1773150096738,0.00562,70096.0,70050.0,0.00023]
[1773150096739,0.1631623,70090.0,70050.0,0.00023]
[1773150096953,0.03941339,70089.0,70053.0,0.20167649]
[1773150097166,0.07133176,70095.0,70052.0,0.00156]
[1773150097167,0.07133176,70095.0,70054.0,0.162545]
[1773150097372,0.07695133,70096.0,70058.0,0.831769]
[1773150097373,0.03,70094.0,70058.0,0.831769]
[1773150097578,0.03,70094.0,70059.0,0.20323649]
[1773150097784,0.03,70094.0,70060.0,0.00156]
[1773150097998,0.03,70094.0,70062.0,0.20167649]
[1773150098400,0.03,70094.0,70064.0,0.20167649]
[1773150098401,0.03,70092.0,70064.0,0.20167649]
[1773150098682,0.03,70092.0,70066.0,0.20167649]
[1773150099359,0.00111344,70095.0,70066.0,0.20167649]
[1773150099559,0.00111344,70095.0,70068.0,0.20167649]
[1773150099560,0.03,70093.0,70068.0,0.20167649]
[1773150100108,0.07132508,70102.0,70067.0,0.00156]
[1773150100109,0.0713237,70103.0,70070.0,0.1631623]
[1773150100315,0.07131982,70107.0,70093.0,0.20167649]
[1773150100521,0.03,70107.0,70076.0,0.20167649]
[1773150100731,0.03785339,70106.0,70076.0,0.00037764]
[1773150100940,0.03785339,70106.0,70077.0,0.00156]
[1773150100941,0.06785339,70099.0,70077.0,0.00156]
[1773150101150,0.00156,70098.0,70078.0,0.20167649]
[1773150101497,0.00156,70098.0,70076.0,0.00037764]
[1773150101702,0.06785339,70096.0,70077.0,0.00156]
[1773150101904,0.03,70096.0,70077.0,0.00156]
[1773150102253,0.03,70094.0,70077.0,0.00156]
[1773150102527,0.25367309,70106.0,70077.0,0.00156]
[1773150102528,0.10917522,70105.0,70079.0,0.20167649]
[1773150102726,0.10917522,70105.0,70076.0,0.00037764]
[1773150102727,0.19132809,70098.0,70076.0,0.00037764]
[1773150102934,0.19132809,70098.0,70079.0,0.00156]
[1773150102935,0.03941339,70097.0,70079.0,0.00156]
[1773150103138,0.03,70104.0,70080.0,0.20167649]
[1773150103291,0.07132183,70105.0,70076.0,0.00037764]
[1773150103292,0.22132809,70097.0,70076.0,0.00037764]
[1773150103501,0.03,70089.0,70076.0,0.00037764]
[1773150103719,0.00156,70088.0,70076.0,0.00037764]
[1773150104083,0.22132809,70086.0,70063.0,0.0713641]
[1773150104329,0.22132809,70086.0,70056.0,0.20167649]
[1773150104330,0.00156,70088.0,70068.0,1e-08]
[1773150104331,0.03,70079.0,70068.0,1e-08]
[1773150104532,0.03,70079.0,70034.0,0.3424]
[1773150104533,0.03,70069.0,70025.0,0.07183239]
[1773150104786,0.03,70069.0,70025.0,1e-08]
[1773150104787,0.03,70037.0,70025.0,1e-08]
[1773150104984,0.00156,70036.0,70025.0,1e-08]
[1773150105187,0.00156,70036.0,70010.0,1e-08]
[1773150105188,0.03,70030.0,70010.0,1e-08]
[1773150105391,0.03,70030.0,70000.0,0.00023]
[1773150105392,0.03,70015.0,70000.0,0.00023]
[1773150105591,0.22132809,70013.0,70000.0,0.00023]
[1773150105812,0.22132809,70013.0,70000.0,0.2140183]
[1773150105813,0.03,70013.0,70000.0,0.2140183]
[1773150106017,0.00156,70022.0,69996.0,1e-08]
[1773150106018,0.03,70009.0,69996.0,1e-08]
[1773150106223,0.03,70009.0,69967.0,0.0714615]
[1773150106224,0.03,70001.0,69977.0,0.07145199]
[1773150106456,0.03,70001.0,69979.0,0.07144984]
[1773150106457,0.00156,70000.0,69979.0,0.07144984]
[1773150106630,0.00156,70000.0,69963.0,0.0714656]
[1773150106631,0.00156,70000.0,69963.0,0.07146634]
[1773150106632,0.03,69989.0,69963.0,0.07146634]
[1773150106828,0.03,69989.0,69951.0,0.0008087]
[1773150106829,0.03,69989.0,69955.0,0.07147247]
[1773150106830,0.00156,69988.0,69955.0,0.07147247]
[1773150107031,0.00156,69988.0,69925.0,0.34345128]
[1773150107032,0.03,69967.0,69947.0,1e-08]
[1773150107259,0.03,69967.0,69925.0,0.00023]
[1773150107260,0.03,69952.0,69925.0,0.07173441]
[1773150107464,0.03785339,69956.0,69926.0,0.00432571]
[1773150107465,0.00156,69951.0,69926.0,0.00432571]
[1773150107664,0.04347339,69956.0,69928.0,0.182572]
[1773150107665,0.00562,69956.0,69928.0,0.182572]
[1773150107832,0.00562,69956.0,69925.0,0.07173441]
[1773150107833,0.00562,69956.0,69931.0,0.19149222]
[1773150108037,0.00156,69969.0,69935.0,0.19149222]
[1773150108261,0.03785339,69966.0,69938.0,0.07149189]
[1773150108464,0.03785339,69966.0,69939.0,0.00152]
[1773150108465,0.03,69965.0,69939.0,0.00152]
[1773150108676,0.07302198,69968.0,69940.0,0.00432481]
[1773150108677,0.03,69963.0,69940.0,0.00432481]
[1773150108875,0.06785339,69963.0,69940.0,0.0057546]
[1773150109367,0.21841671,69955.0,69935.0,0.00037808]
[1773150109577,0.07302198,69968.0,69935.0,0.00037808]
[1773150109578,0.03,69953.0,69936.0,0.07193716]
[1773150109745,0.03,69953.0,69937.0,0.00152]
[1773150110280,0.07147758,69952.0,69936.0,0.07149393]
[1773150110481,0.07147758,69952.0,69935.0,0.00037808]
[1773150110482,0.03,69951.0,69935.0,0.00037808]
[1773150110629,0.03,69951.0,69928.0,0.07712111]
[1773150110630,0.06785339,69949.0,69928.0,0.07712111]
[1773150110829,0.06823031,69949.0,69928.0,0.07712111]
[1773150111026,0.00156,69948.0,69928.0,0.07712111]
[1773150111274,0.00156,69948.0,69929.0,0.0009468]
[1773150111427,0.00156,69948.0,69928.0,0.07712111]
[1773150111624,0.03156,69948.0,69928.0,0.07712111]
[1773150111877,0.00156,69947.0,69929.0,0.00106314]
[1773150112202,0.03,69943.0,69925.0,0.00023]
[1773150112356,0.03,69941.0,69925.0,0.07173453]
[1773150112529,0.00156,69940.0,69925.0,0.00023]
[1773150112935,0.00156,69940.0,69879.0,0.00572613]
[1773150112936,0.00156,69940.0,69906.0,0.07233252]
[1773150112937,0.03,69934.0,69906.0,0.07233252]
[1773150113154,0.06785339,69928.0,69906.0,0.0008087]
[1773150113376,0.06785339,69928.0,69906.0,0.26382488]
[1773150113377,0.03,69928.0,69906.0,0.26382488]
[1773150113577,0.03,69928.0,69924.0,0.0002]
[1773150113971,0.03,69928.0,69908.0,0.00101351]
[1773150114199,0.03,69942.0,69910.0,0.21764]
[1773150114453,0.03,69942.0,69913.0,0.19149222]
[1773150114674,0.07148197,69948.0,69912.0,0.07151848]
[1773150114675,0.07147617,69954.0,69916.0,0.631398]
[1773150114876,0.07147728,69953.0,69917.0,0.19251577]
[1773150115085,0.07146962,69960.0,69917.0,0.19251577]
[1773150115086,0.07146717,69963.0,69920.0,0.10764]
[1773150115255,0.03,69958.0,69928.0,0.1254]
[1773150115583,0.03562,69956.0,69931.0,0.25387975]
[1773150115754,0.03562,69956.0,69932.0,0.19149222]
[1773150115965,0.18841671,69979.0,69934.0,0.19149222]
[1773150116168,0.00156,69974.0,69936.0,0.19149222]
[1773150116367,0.00156,69973.0,69938.0,0.19149222]
[1773150116781,0.00037715,69973.0,69938.0,0.19149222]
[1773150116994,0.00037715,69973.0,69940.0,0.19149222]
[1773150117204,0.00037715,69973.0,69943.0,0.418904]
[1773150117408,0.00037715,69973.0,69944.0,0.19305222]
[1773150117719,0.04097045,69973.0,69944.0,0.19305222]
[1773150117875,0.03037715,69973.0,69944.0,0.19305222]
[1773150118287,0.00023,69975.0,69944.0,0.19305222]
[1773150118288,0.00023,69975.0,69944.0,0.00156]
[1773150118486,0.00562,69984.0,69952.0,0.19149222]
[1773150118683,0.00562,69984.0,69955.0,0.501581]
[1773150119000,0.00562,69984.0,69958.0,0.19149222]
[1773150119211,0.00562,69984.0,69961.0,0.25387975]
[1773150119408,0.00048,69998.0,69961.0,0.25387975]
[1773150119409,0.00048,69998.0,69965.0,0.652845]
[1773150119612,0.03,70002.0,69968.0,0.19149222]
[1773150119805,0.15283008,70040.0,69966.0,0.00156]
[1773150119806,0.15283008,70040.0,69978.0,1.925856]
[1773150119807,0.0105933,70021.0,69978.0,1.925856]
[1773150120165,0.07139378,70035.0,69975.0,0.00023]
[1773150120166,0.00156,70030.0,70000.0,0.00023]
[1773150120313,0.04347339,70040.0,70000.0,0.00023]
[1773150120314,0.03785339,70035.0,70000.0,0.00023]
[1773150120637,0.03785339,70035.0,70001.0,0.07298755]
[1773150120638,0.03,70026.0,70001.0,0.07298755]
[1773150120865,0.03,70026.0,70002.0,0.19149222]
[1773150121072,0.03,70024.0,70002.0,0.19305222]
[1773150121347,0.03,70022.0,70003.0,0.00156]
[1773150121554,0.03,70018.0,70001.0,0.06986755]
[1773150121767,0.03,70016.0,70001.0,0.06986755]
[1773150121931,0.0121533,70017.0,70001.0,0.06986755]
[1773150121932,0.03,70014.0,70001.0,0.06986755]
[1773150122136,0.00156,70017.0,69984.0,0.07706415]
[1773150122137,0.03,70012.0,69984.0,0.07706415]
[1773150122337,0.23548859,70013.0,69984.0,0.07706415]
[1773150122338,0.06785339,70008.0,69984.0,0.07706411]
[1773150122539,0.03,70004.0,69985.0,0.00156]
[1773150122855,0.08357472,70007.0,69963.0,0.25387975]
[1773150122856,0.21841671,69998.0,69977.0,0.00156]
[1773150123074,0.03,69996.0,69977.0,0.00156]
[1773150123342,0.00011311,69996.0,69978.0,0.19149222]
[1773150123506,0.00156,70011.0,69980.0,0.19149222]
[1773150123732,0.00156,70010.0,69980.0,0.19160533]
[1773150124481,0.03,70004.0,69980.0,0.00011311]
[1773150124715,0.03,70004.0,69975.0,0.07168306]
[1773150124716,0.0714204,70008.0,69975.0,0.07168375]
[1773150124717,0.03,69998.0,69975.0,0.07168375]
[1773150124909,0.06785339,69992.0,69975.0,0.07168375]
[1773150125109,0.03785339,69991.0,69975.0,0.00023]
[1773150125354,0.00156,69997.0,69958.0,0.07147145]
[1773150125355,0.20218963,69995.0,69958.0,0.07147145]
[1773150125583,0.00133,69997.0,69958.0,0.07147145]
[1773150125584,0.03785339,69992.0,69959.0,0.01000837]
[1773150125855,0.00133,69997.0,69959.0,0.01000837]
[1773150125856,0.03785339,69987.0,69959.0,0.01130911]
[1773150126097,0.03,69982.0,69959.0,0.01130911]
[1773150126278,0.03,69974.0,69956.0,0.00562]
[1773150126480,0.03,69974.0,69935.0,0.07149405]
[1773150126481,0.03,69968.0,69935.0,0.07149405]
[1773150126802,0.03,69960.0,69936.0,0.01276254]
[1773150127011,0.03,69958.0,69934.0,0.01276289]
[1773150127213,0.03,69958.0,69935.0,0.00990289]
[1773150127418,0.07145817,69971.0,69931.0,0.07169802]
[1773150127419,0.03,69956.0,69931.0,0.07169802]
[1773150127595,0.00156,69957.0,69935.0,0.00037715]
[1773150127596,0.03,69954.0,69935.0,0.00037715]
[1773150127829,0.03,69954.0,69935.0,0.01161508]
[1773150128029,0.00156,69953.0,69935.0,0.00037715]
[1773150128234,0.03,69954.0,69935.0,0.00037715]
[1773150128417,0.03,69950.0,69936.0,0.07149393]
[1773150128660,0.06785339,69950.0,69933.0,0.07149661]
[1773150128880,0.07147424,69956.0,69934.0,0.0095471]
[1773150129086,0.07145175,69978.0,69934.0,0.00992495]
[1773150129087,0.00156,69953.0,69934.0,0.00992495]
[1773150129290,0.00156,69952.0,69934.0,0.00037785]
[1773150129502,0.00156,69958.0,69936.0,0.18561221]
[1773150129716,0.00156,69959.0,69937.0,0.00817943]
[1773150129941,0.03,69968.0,69936.0,0.18561221]
[1773150130168,0.03,69968.0,69934.0,0.00037785]
[1773150130169,0.03156,69968.0,69939.0,0.18561221]
[1773150130378,0.03156,69968.0,69941.0,0.18561221]
[1773150130584,0.03,69967.0,69943.0,1.938617]
[1773150130795,0.07168431,69975.0,69944.0,0.19537552]
[1773150131045,0.0714334,69996.0,69944.0,0.19537552]
[1773150131046,0.03785339,69997.0,69951.0,1.088275]
[1773150131236,0.03785339,69997.0,69950.0,0.00023]
[1773150131237,0.00179,70000.0,69957.0,0.18561221]
[1773150131434,0.00179,70000.0,69960.0,0.14721008]
[1773150131435,0.00023,70000.0,69960.0,0.14721008]
[1773150131640,0.03,70010.0,69977.0,0.18561221]
[1773150131812,0.03,70008.0,69978.0,0.00966674]
[1773150132220,0.23218963,70008.0,69978.0,0.00966674]
[1773150132429,0.23218963,70008.0,69975.0,0.00023]
[1773150132430,0.23218963,70002.0,69975.0,0.00023]
[1773150132630,0.03,69996.0,69975.0,0.07168306]
[1773150132801,0.03,69996.0,69976.0,0.08160458]
[1773150132802,0.03,69992.0,69976.0,0.08160458]
[1773150132974,0.00156,69991.0,69977.0,0.001]
[1773150133174,0.03,69990.0,69972.0,0.07145643]
[1773150133377,0.03,69988.0,69972.0,0.07145643]
[1773150133637,0.03,69988.0,69973.0,0.01014932]
[1773150133857,0.07165857,70000.0,69973.0,0.01170932]
[1773150133994,0.00156,70006.0,69977.0,0.18561221]
[1773150134199,0.03785339,70004.0,69978.0,0.01018087]
[1773150134499,0.03785339,70004.0,69969.0,0.25706936]
[1773150134500,0.03,69991.0,69960.0,0.07146736]
[1773150134721,0.03,69991.0,69957.0,0.07147247]
[1773150134722,0.23218963,69983.0,69957.0,0.08293577]
[1773150135038,0.03,69981.0,69957.0,0.08293577]
[1773150135235,0.00156,69980.0,69957.0,0.08293577]
[1773150135407,0.03,69981.0,69957.0,0.08293577]
[1773150135606,0.00156,69991.0,69958.0,0.18561221]
[1773150135802,0.03,69989.0,69959.0,0.01159356]
[1773150136309,0.03,69989.0,69960.0,0.18561221]
[1773150136546,0.03,69989.0,69961.0,0.00156]
[1773150136547,0.03,69985.0,69961.0,0.00156]
[1773150136728,0.03,69983.0,69962.0,0.00958942]
[1773150136965,0.00156,69982.0,69962.0,0.00958942]
[1773150137159,0.06785339,69981.0,69957.0,0.07147247]
[1773150137338,0.03785339,69980.0,69958.0,0.00910699]
[1773150137542,0.06785339,69977.0,69956.0,0.07709289]
[1773150137743,0.03,69975.0,69956.0,0.07709289]
[1773150137942,0.00156,69974.0,69956.0,0.07709289]
[1773150138141,0.00156,69980.0,69957.0,0.01046616]
[1773150138543,0.0730095,69980.0,69958.0,0.07147145]
[1773150138745,0.03,69979.0,69959.0,0.01202586]
[1773150138949,0.00023,70000.0,69961.0,0.23255784]
[1773150139220,0.07142971,69999.0,69964.0,1.104386]
[1773150139351,0.07321875,70000.0,69968.0,0.844613]
[1773150139552,0.07321875,70000.0,69970.0,0.18561221]
[1773150139757,0.03,69999.0,69972.0,0.18561221]
[1773150139957,0.03,69997.0,69973.0,0.00156]
[1773150140186,0.03,69995.0,69968.0,0.00011334]
[1773150140393,0.06785339,69995.0,69968.0,0.00011334]
[1773150140604,0.03785339,69990.0,69970.0,0.07145919]
[1773150140834,0.03,69987.0,69965.0,0.07146418]
[1773150140975,0.03011336,69987.0,69967.0,0.18561221]
[1773150141188,0.00156,69996.0,69969.0,0.18561221]
[1773150141514,0.001,69999.0,69973.0,0.18561221]
[1773150141886,0.001,69999.0,69975.0,0.18561221]
[1773150142098,0.00403,70000.0,69976.0,0.18561221]
[1773150142324,0.03,70003.0,69978.0,0.18561221]
[1773150142537,0.07703667,70012.0,69978.0,0.18561221]
[1773150142538,0.00562,70012.0,69978.0,0.18561221]
[1773150142746,0.00562,70012.0,69981.0,1.976815]
[1773150142747,1e-08,70012.0,69981.0,1.976815]
[1773150142948,0.03,70018.0,69985.0,0.524175]
[1773150143158,0.00023,70025.0,69988.0,0.18561221]
[1773150143159,0.00156,70021.0,69988.0,0.18561221]
[1773150143370,0.00023,70025.0,69992.0,0.18561221]
[1773150143371,0.07171448,70024.0,69992.0,0.18561221]
[1773150143588,0.07171448,70024.0,69984.0,0.00562]
[1773150143589,0.00031011,70024.0,69995.0,1.121477]
[1773150143799,0.00031011,70024.0,69984.0,0.00562]
[1773150143800,0.00031011,70024.0,69998.0,0.18561221]
[1773150144013,0.00031011,70024.0,70000.0,0.18561221]
[1773150144229,0.03,70023.0,70001.0,0.00156]
[1773150144465,0.03,70023.0,70000.0,0.18561221]
[1773150144700,0.03037824,70023.0,70002.0,0.07142653]
[1773150144910,0.03037824,70023.0,70002.0,0.25703874]
[1773150145323,0.03,70022.0,70003.0,0.18561221]
[1773150145754,0.00031011,70024.0,70003.0,0.18561221]
[1773150145937,0.00042349,70024.0,70003.0,0.18561221]
[1773150146144,0.33773075,70064.0,70002.0,0.07142653]
[1773150146145,0.00562,70040.0,70005.0,0.18561221]
[1773150146280,0.03156,70039.0,70006.0,0.18561221]
[1773150146486,0.03156,70039.0,70007.0,0.00156]
[1773150146487,0.00156,70038.0,70007.0,0.00156]
[1773150146723,0.03,70039.0,70009.0,1.658805]
[1773150146900,0.03,70039.0,70011.0,0.857246]
[1773150147111,0.00156,70038.0,70014.0,0.18561221]
[1773150147550,0.00156,70038.0,70014.0,0.18717221]
[1773150147754,0.00156,70038.0,70015.0,0.00156]
[1773150148073,0.00156,70038.0,70007.0,0.07142142]
[1773150148074,0.03,70034.0,70007.0,0.07142142]
[1773150148242,0.03,70030.0,70007.0,0.07142142]
[1773150148396,0.07138916,70039.0,70000.0,0.00023]
[1773150148397,0.27004302,70028.0,70005.0,0.02903029]
[1773150148601,0.22402013,70040.0,69987.0,0.07300081]
[1773150148602,0.23218963,70023.0,69987.0,0.07300081]
[1773150148838,0.03,70015.0,69988.0,0.08331363]
[1773150149037,0.24326424,70018.0,69988.0,0.08331363]
[1773150149038,0.03,70009.0,69988.0,0.07144081]
[1773150149244,0.00156,70014.0,69984.0,0.00562]
[1773150149245,0.03,70005.0,69984.0,0.00562]
[1773150149450,0.24326424,70018.0,69984.0,0.00562]
[1773150149451,0.03,70001.0,69984.0,0.00562]
[1773150149656,0.00156,70000.0,69984.0,0.00562]
[1773150149896,0.03,69996.0,69977.0,0.07165195]
[1773150150103,0.03,69996.0,69978.0,0.01347291]
[1773150150308,0.00156,69995.0,69978.0,0.01347291]
[1773150150613,0.03,69993.0,69978.0,0.08503699]
[1773150150825,0.03,69993.0,69978.0,0.00011338]
[1773150151041,0.03,69993.0,69966.0,0.18561221]
[1773150151042,0.07143469,69994.0,69960.0,0.07146901]
[1773150151043,0.03,69985.0,69960.0,0.07146901]
[1773150151195,0.03,69975.0,69960.0,0.00011336]
[1773150151395,0.00156,69974.0,69960.0,0.00011336]
[1773150151620,0.00156,69974.0,69951.0,0.01216125]
[1773150151621,0.03,69970.0,69951.0,0.01216125]
[1773150151831,0.00156,69974.0,69950.0,1.07170932]
[1773150151832,0.03785339,69965.0,69950.0,1.07170932]
[1773150151976,0.03156,69964.0,69950.0,1.00023]
[1773150152173,0.03156,69964.0,69950.0,1.07190947]
[1773150152174,0.03,69964.0,69950.0,1.07190947]
[1773150152411,0.00156,69963.0,69950.0,1.07190947]
[1773150152614,0.03785339,69965.0,69952.0,0.07147758]
[1773150152615,0.00156,69965.0,69952.0,0.07147758]
[1773150152829,0.00156,69965.0,69953.0,0.01015541]
[1773150153205,0.03,69973.0,69953.0,0.01015541]
[1773150153206,0.00156,69964.0,69953.0,0.01015541]
[1773150153404,0.00156,69963.0,69950.0,0.60987716]
[1773150153610,0.00138309,69963.0,69945.0,0.0002]
[1773150153809,0.00138309,69963.0,69950.0,0.00278164]
[1773150154214,0.00138309,69963.0,69947.0,1e-08]
[1773150154430,0.00138309,69963.0,69931.0,0.07169844]
[1773150154431,0.00138309,69963.0,69931.0,0.0002]
[1773150154774,0.03,69959.0,69931.0,0.0002]
[1773150154946,0.05346217,69957.0,69931.0,0.0002]
[1773150155147,0.05346217,69957.0,69927.0,0.07150309]
[1773150155148,0.14701137,69960.0,69917.0,0.07171292]
[1773150155149,0.05303215,69947.0,69917.0,0.07171292]
[1773150155298,0.03,69945.0,69917.0,0.07171292]
[1773150155647,0.00156,69944.0,69917.0,0.08506779]
[1773150155843,0.00156,69944.0,69917.0,0.08506783]
[1773150156324,0.03,69939.0,69913.0,0.07231619]
[1773150156548,0.03,69939.0,69914.0,0.19925795]
[1773150156748,0.10149185,69939.0,69917.0,0.19925795]
[1773150156864,0.07148275,69947.0,69916.0,0.08435948]
[1773150156865,0.28095204,69978.0,69916.0,0.07151438]
[1773150157072,0.78394058,69990.0,69928.0,0.19925795]
[1773150157073,0.07146957,69960.0,69928.0,0.19925795]
[1773150157291,0.03,69962.0,69934.0,0.19813395]
[1773150157510,0.03011322,69962.0,69933.0,0.19813395]
[1773150157760,0.03011322,69962.0,69937.0,0.19813395]
[1773150157963,0.03011322,69962.0,69932.0,0.24907244]
[1773150157964,0.03011322,69962.0,69941.0,0.19813395]
[1773150158199,0.03011322,69962.0,69943.0,0.19813395]
[1773150158340,0.03,69961.0,69943.0,0.19813395]
[1773150158862,0.03,69961.0,69932.0,0.24907244]
[1773150158863,0.03,69959.0,69932.0,0.24907244]
[1773150159063,0.03,69959.0,69932.0,0.07149796]
[1773150159266,0.03,69959.0,69930.0,0.07149904]
[1773150159267,0.03,69959.0,69934.0,0.0002]
[1773150159582,0.03,69959.0,69934.0,0.19976386]
[1773150159877,0.03,69959.0,69934.0,0.19833395]
[1773150160073,0.03156,69958.0,69937.0,0.19813395]
[1773150160279,0.00156,69957.0,69937.0,0.19813395]
[1773150160581,0.00156,69956.0,69937.0,0.22707404]
[1773150160737,0.00156,69956.0,69939.0,0.19813395]
[1773150160940,0.00156,69956.0,69942.0,0.19813395]
[1773150161141,0.03,69957.0,69942.0,0.19813395]
[1773150161332,0.00011322,69962.0,69944.0,0.19813395]
[1773150161333,0.00156,69960.0,69944.0,0.19813395]
[1773150161527,0.00156,69960.0,69945.0,0.00108034]
[1773150161727,0.00156,69960.0,69946.0,0.19813395]
[1773150161979,0.00156,69960.0,69947.0,0.19921425]
[1773150162175,0.00011322,69962.0,69947.0,0.19921425]
[1773150162406,0.00156,69961.0,69947.0,0.19921425]
[1773150162609,0.00011322,69962.0,69947.0,0.19921425]
[1773150162819,0.00156,69964.0,69949.0,0.19811131]
[1773150163100,0.08481218,69972.0,69949.0,0.19811131]
[1773150163101,0.01335487,69972.0,69951.0,0.19811131]
[1773150163254,0.00156,69971.0,69950.0,0.07147962]
[1773150163459,0.01335487,69970.0,69950.0,0.07147962]
[1773150163670,0.07168511,69975.0,69951.0,0.19811131]
[1773150163671,0.07168427,69975.0,69951.0,0.19811131]
[1773150163891,0.00156,69974.0,69951.0,0.19811131]
[1773150164092,0.03,69972.0,69951.0,0.19811131]
[1773150164297,0.03,69972.0,69947.0,0.07303962]